Cogmind - Beta 9.4 @@@ ROGUE MODE // 2020.01.31 @ 13:30:03 Player: Judas Result: Destroyed by D-53 Grenadier with Mini Grenade Launcher Performance ------------- Evolutions (1) 500 Regions Visited (3) 600 Robots Destroyed (27) 135 Value Destroyed (528) 528 Prototype IDs (0) 0 Alien Tech Used (0) 0 Bonus (-12) -12 TOTAL SCORE: 1751 Bonus ------- Friendly Fire -12 Cogmind --------- Core Integrity 0/400 Matter 63/300 Energy 100/100 System Corruption 0% Temperature Cool (0) Movement Core (800) Ox15 Location -9/Mines Parts ------- > --- POWER (1) -------- (None) > --- PROPULSION (2) --- (None) > --- UTILITY (3) ------ Large Storage Unit High-capacity Storage Unit Improved Signal Interpreter > --- WEAPON (3) ------- (None) > --- INVENTORY (18) --- Light Treads Light Treads Aluminum Leg Wheel Wheel Armored Wheel Small Storage Unit Large Storage Unit Katana Peak State ------------ > --- POWER ------------ Light Ion Engine > --- PROPULSION ------- Improved Aluminum Leg Improved Aluminum Leg > --- UTILITY ---------- Large Storage Unit High-capacity Storage Unit Targeting Computer > --- WEAPON ----------- EM Shotgun Heavy Assault Rifle Katana > --- INVENTORY -------- Light Treads Light Treads Aluminum Leg Wheel Wheel Armored Wheel Small Storage Unit Small Storage Unit Large Storage Unit Improved Signal Interpreter Medium Laser Medium Laser Medium Laser Assault Rifle Light Assault Rifle Rocket Launcher [Rating: 16] Favorites ----------- Power Light Ion Engine Engine Light Ion Engine Propulsion Improved Aluminum Leg Leg Improved Aluminum Leg Utility Large Storage Unit Storage Large Storage Unit Processor Targeting Computer Weapon Medium Laser Energy Gun Medium Laser Ballistic Gun Light Assault Rifle Launcher Rocket Launcher Slashing Weapon Katana Build | -11 -10 -9 -9 ------- Run | Scr Mat Mat Min Slots Evolved 2 | . . 2 . Power . | . . . . Propulsion . | . . . . Utility 1 | . . 1 . Weapon 1 | . . 1 . Parts Attached 23 | 1 2 11 9 Power 2 | . . 1 1 Engine 2 | . . 1 1 Core . | . . . . Reactor . | . . . . Propulsion 4 | . . 2 2 Treads . | . . . . Leg 4 | . . 2 2 Wheel . | . . . . Hover . | . . . . Flight . | . . . . Utility 6 | 1 2 2 1 Device . | . . . . Storage 4 | 1 2 1 . Processor 2 | . . 1 1 Hackware . | . . . . Protection . | . . . . Artifact . | . . . . Weapon 11 | . . 6 5 Energy Gun 4 | . . 2 2 Energy Cannon . | . . . . Ballistic Gun 4 | . . 2 2 Ballistic Cannon . | . . . . Launcher 1 | . . . 1 Special Weapon . | . . . . Impact Weapon . | . . . . Slashing Weapon 2 | . . 2 . Piercing Weapon . | . . . . Special Melee Weapon . | . . . . Unidentified Prototypes . | . . . . Parts Lost 13 | . . 1 12 Power 3 | . . 1 2 Propulsion 2 | . . . 2 Utility 1 | . . . 1 Weapon 7 | . . . 7 Highest Loss Streak 10 | . . 1 10 Average Slot Usage (%) 97 | . 100 98 84 Engine 11 | . 14 10 10 Leg 22 | . 28 22 16 Storage 23 | . 28 22 22 Processor 7 | . . 11 9 Energy Gun 12 | . 14 13 . Ballistic Gun 14 | . 14 12 22 Slashing Weapon 3 | . . 6 . Naked Turns . | . . . . Heaviest Build 59 | 16 28 59 59 Greatest Support 26 | 20 20 26 26 Greatest Overweight (x) 15 | . 1 2 15 Average Overweight (x) 1 | . . 1 2 Largest Inventory Capacity 18 | 8 12 18 18 Average Capacity 15 | 7 10 16 18 Most Carried 16 | 6 11 16 16 Average Carried 12 | 6 8 13 13 Final Capacity 18 | 8 12 18 18 Final Carried 16 | 6 11 16 9 Class Distribution -------------------- 56% | Mutant 29% | Gunner 14% | Scavenger-Mutant Dominant Class ---------------- Mutant | -10/Materials Mutant | -9/Materials Gunner | -9/Mines Resources | -11 -10 -9 -9 ----------- Run | Scr Mat Mat Min Matter Collected 429 | 212 25 158 34 Remotely . | . . . . Salvage Created 731 | 81 54 467 129 Parts 38 | 4 3 24 7 Haulers Intercepted . | . . . . Recyclers Shooed 2 | . . 1 1 Parts Field Recycled . | . . . . Retrieved Matter . | . . . . Parts Self-Destructed . | . . . . Prevented . | . . . . Kills | -11 -10 -9 -9 ------- Run | Scr Mat Mat Min Combat Hostiles Destroyed 23 | . 1 7 15 Guns 12 | . 1 7 4 AOE 11 | . . . 11 Classes Destroyed 8 | 1 2 3 2 Worker 1 | . . 1 . Recycler 2 | 1 . 1 . Watcher 1 | . 1 . . Grunt 7 | . 1 3 3 Duelist 1 | . . 1 . Sentry 3 | . . 3 . Demolisher 1 | . . . 1 Assembled 11 | . . . 11 Best Kill Streak 12 | 1 1 3 12 Combat Bots Only 12 | . 1 2 12 Max Kills in Single Turn 3 | 1 1 1 3 Gunslinging . | . . . . Exploded 3 | . . . 3 Melee . | . . . . Uniques/NPCs Destroyed . | . . . . Combat | -11 -10 -9 -9 -------- Run | Scr Mat Mat Min Damage Taken 1814 | . 95 366 1353 Core 454 | . 31 81 342 Absorbed by Shields . | . . . . Core Remaining (%) 93 | 100 87 . . Volleys Fired 55 | 2 5 23 25 Largest 3 | 2 2 3 3 Hottest 120 | 70 70 120 88 Shots Fired 126 | 4 10 61 51 Gun 112 | 4 10 61 37 Cannon . | . . . . Launcher 14 | . . . 14 Special . | . . . . Kinetic 71 | 2 5 30 34 Thermal 34 | 2 5 25 2 Explosive 14 | . . . 14 Electromagnetic 7 | . . 6 1 Robot Hit Streak 18 | 1 4 18 12 Robot Miss Streak 3 | 1 3 2 3 Penetration Max . | . . . . Secondary Targets . | . . . . Shots Hit Robots 86 | 1 4 45 36 Core Hits 67 | 2 4 22 39 Critical Hits 2 | . . 1 1 Critical Kills 1 | . . 1 . Critical Parts Destroyed . | . . . . Melee Attacks 23 | . . 23 . Impact . | . . . . Slashing 23 | . . 23 . Piercing . | . . . . Sneak Attacks . | . . . . Combat Hostiles . | . . . . Follow-up Attacks . | . . . . Damage Inflicted 1791 | 16 59 565 1151 Guns 958 | 16 59 565 318 Cannons . | . . . . Explosions 833 | . . . 833 Melee . | . . . . Ramming . | . . . . Kinetic 530 | 16 9 219 286 Thermal 325 | . 50 262 13 Explosive 833 | . . . 833 Electromagnetic 103 | . . 84 19 Impact . | . . . . Slashing . | . . . . Piercing . | . . . . Highest Corruption . | . . . . Average Corruption . | . . . . Corruption Purged . | . . . . Overload Shots . | . . . . Overflow Damage 14 | . . . 14 Projectiles . | . . . . Explosions 14 | . . . 14 Melee . | . . . . Knockbacks . | . . . . Impact . | . . . . Kinetic . | . . . . Secondary . | . . . . Self-Inflicted Damage 46 | . . . 46 Shots 1 | . . . 1 Rammed 1 | . . . 1 Targets Rammed 1 | . . . 1 Kicked . | . . . . Crushed . | . . . . Highest Temperature 264 | 40 52 264 45 Average Temperature 48 | 20 28 71 17 Received Heat Transfer 287 | . 54 108 125 Siege Activations . | . . . . Robots Corrupted . | . . . . Combat Hostiles . | . . . . Parts Fried . | . . . . Impact Corruptions . | . . . . Robots Melted . | . . . . Combat Hostiles . | . . . . Parts Melted 1 | . . 1 . Heat Transferred 962 | . 148 777 37 Parts Sabotaged . | . . . . Parts Stolen . | . . . . Parts Stripped . | . . . . Power Chain Reactions . | . . . . Missiles Intercepted . | . . . . Alert | -11 -10 -9 -9 ------- Run | Scr Mat Mat Min Peak Influence 149 | 5 45 149 107 Average Influence 57 | 4 18 70 89 Maximum Alert Level . | . . . . Low Security (%) 100 | 100 100 100 100 Level 1 . | . . . . Level 2 . | . . . . Level 3 . | . . . . Level 4 . | . . . . Level 5 . | . . . . High Security . | . . . . Max Security . | . . . . Squads Dispatched . | . . . . Investigation . | . . . . Extermination . | . . . . Reinforcement . | . . . . Assault . | . . . . Garrison . | . . . . Intercept . | . . . . Construction Impeded . | . . . . Haulers Reinforced . | . . . . Stealth | -11 -10 -9 -9 --------- Run | Scr Mat Mat Min Distress Signals 2 | . 1 1 . Communications Jammed . | . . . . Distress Signals . | . . . . Times Spotted 39 | . 6 11 22 Peak Tracking Total 12 | . 3 4 12 Tactical Retreats 1 | . . . 1 Traps | -11 -10 -9 -9 ------- Run | Scr Mat Mat Min Traps Triggered . | . . . . Indirectly . | . . . . Trap Hack Attempts . | . . . . Triggered . | . . . . Disarmed . | . . . . Reprogrammed . | . . . . Reused . | . . . . Traps Extracted . | . . . . Installed . | . . . . Triggered . | . . . . Machines | -11 -10 -9 -9 ---------- Run | Scr Mat Mat Min Machines Disabled . | . . . . Max in Single Turn . | . . . . Machines Sabotaged . | . . . . Garrisons Compromised . | . . . . Overloaded Fab Kills . | . . . . Fab Network Shutdowns . | . . . . Hacking | -11 -10 -9 -9 --------- Run | Scr Mat Mat Min Machines Accessed 3 | . 1 2 . Terminals 3 | . 1 2 . Fabricators . | . . . . Repair Stations . | . . . . Recycling Units . | . . . . Scanalyzers . | . . . . Garrison Access . | . . . . Total Hacks 8 | . 3 5 . Successful 6 | . 3 3 . Failed 2 | . . 2 . Catastrophic . | . . . . Database Lockouts . | . . . . Manual 8 | . 3 5 . Terminals 8 | . 3 5 . Fabricators . | . . . . Repair Stations . | . . . . Recycling Units . | . . . . Scanalyzers . | . . . . Garrison Access . | . . . . Terminal Hacks . | . . . . Fabricator Hacks . | . . . . Repair Station Hacks . | . . . . Recycling Unit Hacks . | . . . . Scanalyzer . | . . . . Garrison Access Hacks . | . . . . Unauthorized Hacks 14 | . 6 8 . Terminals 6 | . 3 3 . Track 2 | . 1 1 . Assimilate 1 | . 1 . . Botnet 3 | . 1 2 . Fabricators . | . . . . Repair Stations . | . . . . Recycling Units . | . . . . Scanalyzers . | . . . . Garrison Access . | . . . . Data Cores Recovered . | . . . . Used . | . . . . Hacking Detections 3 | . 1 2 . Full Trace Events . | . . . . Feedback Events . | . . . . Feedback Blocked . | . . . . Robot Schematics Acquired . | . . . . Robots Built . | . . . . Matter . | . . . . Time . | . . . . Total Robot Build Rating . | . . . . Part Schematics Acquired . | . . . . Parts Built . | . . . . Matter . | . . . . Time . | . . . . Total Part Build Rating . | . . . . Parts Repaired . | . . . . Time . | . . . . Parts Recycled . | . . . . Recycled Matter . | . . . . Retrieved Matter . | . . . . Retrieved Components . | . . . . Parts Scanalyzed . | . . . . Part Schematics Acquired . | . . . . Parts Damaged . | . . . . Bothacking | -11 -10 -9 -9 ------------ Run | Scr Mat Mat Min Used RIF Installer . | . . . . Robots Hacked . | . . . . Non-combat . | . . . . Combat . | . . . . Robot Hacks Applied . | . . . . Relay Couplers Released . | . . . . Robots Rewired . | . . . . Allies Hacked . | . . . . Hacks Repelled . | . . . . Allies | -11 -10 -9 -9 -------- Run | Scr Mat Mat Min Total Allies 1 | . 1 . . Largest Group 1 | . 1 . . Highest-Rated Group 10 | . 10 . . Highest-Rated Ally 10 | . 10 . . Total Orders . | . . . . Ally Attacks . | . . . . Total Damage . | . . . . Kills . | . . . . Allies Corrupted . | . . . . Allies Melted . | . . . . Intel | -11 -10 -9 -9 ------- Run | Scr Mat Mat Min Robot Analysis Total . | . . . . Derelict Logs Recovered . | . . . . Drone Launches . | . . . . Drone Recoveries . | . . . . Exploration | -11 -10 -9 -9 ------------- Run | Scr Mat Mat Min Turns Passed 1250 | 29 334 748 139 Spaces Moved 596 | 19 215 330 32 Core 1 | . . . 1 Treads . | . . . . Legs 595 | 19 215 330 31 Wheels . | . . . . Hover . | . . . . Flight . | . . . . Fastest Speed 120 | 120 120 150 180 Average Speed 160 | 120 139 173 199 Slowest Speed 800 | 120 150 180 800 Overloaded Moves . | . . . . Propulsion Burnouts . | . . . . Robots Hopped . | . . . . Cave-ins Triggered . | . . . . Exploration Rate (%) 23 | 3 47 33 11 Regions Visited 3 Branch Regions 1 Pre-discovered Areas . | . . . . Known Exits Taken . | . . . . Unknown Exits Taken 3 | 1 1 1 . Scrap Searched . | . . . . Spaces Dug 23 | . . 23 . Terrain Destroyed 105 | . . 23 82 Melee 23 | . . 23 . Projectile . | . . . . AOE 82 | . . . 82 Actions | -11 -10 -9 -9 --------- Run | Scr Mat Mat Min Total 754 | 21 240 423 70 Wait 43 | . 14 29 . Move 593 | 18 214 329 32 Hop . | . . . . Pick Up 10 | . 4 6 . Fast Attach 5 | 1 1 1 2 Attach 9 | . . 3 6 Detach . | . . . . Swap 9 | . 1 7 1 Drop 6 | . 1 2 3 Fire 55 | 2 5 23 25 Melee 23 | . . 23 . Ram . | . . . . Kick 1 | . . . 1 Crush . | . . . . Escape Stasis . | . . . . Rewire . | . . . . Trap . | . . . . Miscellaneous . | . . . . Route ------- -11/Scrapyard -10/Materials (discovered 2 exits: *Mat / [*Min]) -9/Materials -9/Mines History --------- Turn | Location | Event 7 | -11/Scrapyard | Discovered new exit (range 3) 30 | -11/Scrapyard | Entered Materials 265 | -10/Materials | Discovered new exit (range 7) 308 | -10/Materials | Build established: Mutant 351 | -10/Materials | Discovered new exit (range 9) 364 | -10/Materials | Entered another Materials area 364 | -9/Materials | Evolved 2 slots: Utility x1, Weapon x1 1094 | -9/Materials | Discovered new exit (range 11) 1112 | -9/Materials | Entered Mines 1186 | -9/Mines | Assembled infested the area 1191 | -9/Mines | Assisted by a Guerilla fighting off Assembled 1236 | -9/Mines | Core integrity fell below 50% 1248 | -9/Mines | Core integrity fell below 20% 1251 | -9/Mines | Destroyed by D-53 Grenadier with Mini Grenade Launcher Last Messages --------------- 01239_ The unstable cave ceiling collapses. 01239_ U-05 Engineer builds a Wall. 01239_ T-07 Excavator destroyed. 01240_ The unstable cave ceiling collapses. 01240_ Destroyed Shock Absorption System. 01242_ The unstable cave ceiling collapses. 01243_ U-05 Engineer builds a Wall. 01243_ D-53 Grenadier suffers critical hit. 01243_ Med. Laser destroyed. 01245_ The unstable cave ceiling collapses. 01246_ D-53 Grenadier destroyed. 01248_ The unstable cave ceiling collapses. 01248_ U-05 Engineer lays Concrete. 01249_ The unstable cave ceiling collapses. 01249_ U-05 Engineer lays Concrete. 01249_ Assault Rifle destroyed. 01249_ Imp. Ion Engine destroyed. 01250_ The unstable cave ceiling collapses. 01250_ U-05 Engineer builds a Wall. 01251_ The unstable cave ceiling collapses. Map ----- +----------------------------------------------------+ | | | | | | | | | | | | | | | | | ?????????????????????????????????????????????????? | | ?????????????????????????????????????????????????? | | ???#######???????????????????????????????????????? | | ??## = ##??????????????????????????????????????? | | ??# ! ###????????????????????????????????????? | | ??#!%* ! ######???????????????????????????????? | | ??##=%[ = #???????????????????????????????? | | ???######## #### #???????????????????????????????? | | ??????????# #??# #???????????????????????????????? | | ?????????? #??# #???????????????????????????????? | | ?????????## #??# #??????????????#????????????????? | | ??????????# #??# #????????????? ##???????????????? | | ??????????# #??# #???????????? ????????????????? | | ??????????# ??# ############# ?????????????????? | | ??????????###??# # ##?????????????????? | | ???????????????####### a ##????????????????? | | ????????????????????# ## ###???????????? | | ????????????????????# @ # #??????????? | | ????????????????????# # # ????????? | | ????????????????????# # # ????????? | | ????????????????????# ## # ????????? | | ????????????????????## d %?????????? | | ?????????????????????# ==?????????? | | ?????????????????????# # # ??????????? | | ?????????????????????#### # ??????????? | | ????????????????????????# # ##??????????? | | ????????????????????????## # # # ???????????? | | ?????????????????????????? u# ###? ???????????? | | ??????????????????????????# # # #???????????????? | | ???????????????????????????## ###???????????????? | | ????????????????????????????? #?????????????????? | | ?????????????????????????????? #?????????????????? | | ?????????????????????????????????????????????????? | | ?????????????????????????????????????????????????? | | ?????????????????????????????????????????????????? | | ?????????????????????????????????????????????????? | | ?????????????????????????????????????????????????? | | ?????????????????????????????????????????????????? | | ?????????????????????????????????????????????????? | | ?????????????????????????????????????????????????? | | ?????????????????????????????????????????????????? | | ?????????????????????????????????????????????????? | +----------------------------------------------------+ Best States ------------- Heat Dissipation 28 Energy Generation 12 Energy Capacity 265 Matter Stores 300 Matter Capacity 300 Sight Range 16 Terrain Scan Density 10 Evasion (%) 40 Targeting Accuracy 5 Item Schematics ----------------- None Robot Schematics ------------------ None Fabricated ------------ Nothing Alien Tech Used ----------------- None Achievements -------------- None Challenges ------------ None Game ------ Seed TransportOpticalDiverter Manual? 0 Play Time 00:16:37 Cumulative 37.5 hours Start 2020.01.31 @ 13:15:37 End 2020.01.31 @ 13:30:03 Sessions 1 Manual Loads 0 Difficulty Rogue Special Mode None Game No. 73 Rogue 73 Adventurer 0 Explorer 0 Win Type - Total 0 Types 0/0/0/0/0/0/0 Lore% 25 Gallery% 32 Achievement% 26 Wizard Run 0 Options --------- ASCII 0 Keyboard 0 Movement Mouse Keybinds 0 Fullscreen 2 Font 18/SmallcapsGlow Map View 76x50 Tactical HUD 1 Map Filters NONE Filters NONE Steam 1 RUN: 5e1b7884-13f1-46d3-b06b-868d5badf297